bitfinex-derivatives/quotes_SOLF0:USTF0_20241026
["timestamp","ask_amount","ask_price","bid_price","bid_amount"]
[1729960964042,2.9587,169.19,169.16,2.9591]
[1729960966843,4.42,169.22,169.13,1.227]
[1729960967034,1.3015,169.21,169.13,1.227]
[1729960967234,2.9589,169.18,169.14,2.9595]
[1729960967746,4.42,169.18,169.13,2.9596]
[1729960968443,2.9592,169.16,169.13,2.9596]
[1729960968743,4.42,169.18,169.13,2.9596]
[1729960969043,2.959,169.17,169.13,2.9596]
[1729960980549,4.42,169.18,169.12,137.77328431]
[1729960980751,2.9588,169.18,169.15,2.9593]
[1729960982049,2.959,169.17,169.14,2.9594]
[1729960987654,2.9592,169.16,169.12,2.9597]
[1729960987855,2.9592,169.16,169.1,1.2364]
[1729960988155,2.9592,169.16,169.11,2.9599]
[1729960988356,2.9592,169.16,169.1,1.2364]
[1729960989654,2.9592,169.16,169.13,2.9596]
[1729960990260,4.42,169.19,169.08,5.6588]
[1729960990461,4.42,169.19,169.08,1.2388]
[1729960991260,22.2,169.19,169.08,1.2388]
[1729960991466,22.2,169.19,169.04,1.2188]
[1729960991863,22.2,169.19,169.07,2.9605]
[1729960992064,22.2,169.19,169.05,1.2656]
[1729960992267,2.96,169.12,169.08,2.9605]
[1729960992461,4.42,169.13,169.08,2.9605]
[1729960993463,2.96,169.11,169.08,2.9605]
[1729960994265,4.42,169.13,169.05,1.2656]
[1729960994460,4.42,169.15,169.06,1.2362]
[1729960994964,2.9596,169.14,169.1,2.9601]
[1729960995159,1.3015,169.21,169.06,1.2362]
[1729960995365,4.42,169.2,169.08,4.42]
[1729960995563,2.959,169.17,169.08,4.42]
[1729960997262,2.959,169.17,169.13,2.9595]
[1729960998364,7.3785,169.2,169.17,2.9589]
[1729960998564,1.2777,169.23,169.12,4.42]
[1729960998863,4.42,169.22,169.13,2.4499]
[1729960999064,2.9584,169.21,169.16,2.959]
[1729960999566,2.9584,169.2,169.16,2.959]
[1729961000665,4.42,169.22,169.13,2.4499]
[1729961000867,2.9588,169.19,169.15,2.9593]
[1729961007569,7.3788,169.19,169.15,2.9593]
[1729961014375,7.3788,169.19,169.13,1.1887]
[1729961014576,7.3788,169.19,169.15,2.9592]
[1729961018677,4.42,169.19,169.15,2.9592]
[1729961018876,2.9588,169.18,169.15,2.9592]
[1729961019074,2.9588,169.18,169.16,4.42]
[1729961019376,2.9588,169.18,169.15,2.9592]
[1729961019576,2.9588,169.18,169.16,4.42]
[1729961021481,2.9588,169.18,169.15,2.9592]
[1729961021779,2.9588,169.18,169.16,4.42]
[1729961026979,252.33150083,169.26,169.16,4.42]
[1729961027182,247.91150083,169.26,169.16,4.42]
[1729961027780,2.9584,169.21,169.17,2.9588]
[1729961027985,2.9584,169.21,169.16,4.42]
[1729961028484,2.9584,169.21,169.18,2.9587]
[1729961028783,247.91150083,169.26,169.16,4.42]
[1729961028984,2.9585,169.2,169.16,4.42]
[1729961029181,2.9585,169.2,169.17,2.9588]
[1729961031686,247.91150083,169.26,169.14,1.195]
[1729961031875,0.9797,169.25,169.14,1.195]
[1729961032081,0.9797,169.25,169.15,4.42]
[1729961032286,2.9587,169.19,169.16,2.959]
[1729961032885,0.9797,169.25,169.17,4.42]
[1729961032886,2.9581,169.22,169.17,4.42]
[1729961033083,2.94428804,169.24,169.17,4.42]
[1729961034288,2.9588,169.19,169.17,4.42]
[1729961038689,2.94428804,169.24,169.14,1.195]
[1729961038894,2.9588,169.18,169.16,4.42]
[1729961039893,2.94428804,169.24,169.16,4.42]
[1729961040096,2.9587,169.19,169.16,4.42]
[1729961040588,2.94428804,169.24,169.13,1.1887]
[1729961040896,2.9589,169.18,169.14,7.3794]
[1729961041594,2.9589,169.18,169.14,4.42]
[1729961041795,2.9589,169.18,169.15,2.9593]
[1729961042499,2.92268239,169.23,169.04,63.4224]
[1729961042795,22.2,169.24,169.05,7.0023]
[1729961042996,2.9587,169.19,169.11,2.96]
[1729961043197,3.01253875,169.19,169.11,7.38]
[1729961043494,2.9595,169.15,169.11,7.38]
[1729961043896,4.27693875,169.19,169.11,4.42]
[1729961044193,1.2644,169.19,169.11,4.42]
[1729961044597,2.9593,169.16,169.12,2.9597]
[1729961045191,2.9592,169.16,169.13,2.9596]
[1729961045697,4.42,169.23,169.11,4.42]
[1729961045899,4.42,169.23,169.16,2.959]
[1729961046096,4.42,169.23,169.16,7.379]
[1729961046297,7.44686995,169.23,169.16,7.379]
[1729961046900,2.9588,169.18,169.16,7.379]
[1729961047096,2.9588,169.18,169.16,4.42]
[1729961053511,2.9588,169.18,169.15,2.9592]
[1729961056709,7.44686995,169.23,169.14,4.42]
[1729961057012,7.44686995,169.23,169.14,7.3795]
[1729961057315,2.9589,169.18,169.14,7.3795]
[1729961058913,4.42,169.19,169.05,1.3037]
[1729961059113,2.9596,169.14,169.11,2.96]
[1729961059310,1.1963,169.18,169.11,2.96]
[1729961059717,2.9594,169.15,169.11,2.96]
[1729961061317,1.1963,169.18,169.11,2.96]
[1729961061515,2.9595,169.14,169.11,2.96]
[1729961064714,2.959,169.17,169.14,2.9594]
[1729961065418,1.1963,169.18,169.1,4.42]
[1729961065618,2.9591,169.16,169.13,2.9596]
[1729961067621,2.9588,169.18,169.15,2.9593]
[1729961069917,4.42,169.22,169.14,4.42]
[1729961070121,4.42,169.22,169.16,2.9591]
[1729961070324,4.42,169.22,169.14,4.42]
[1729961070921,2.9588,169.18,169.14,4.42]
[1729961071324,2.9588,169.18,169.15,2.9592]
[1729961072327,2.9587,169.19,169.16,2.9591]
[1729961074720,2.9589,169.18,169.15,2.9593]
[1729961075220,2.9589,169.18,169.14,4.42]
[1729961075425,2.9589,169.18,169.16,2.9591]
[1729961079631,2.9587,169.19,169.16,2.9591]
[1729961085634,2.9584,169.21,169.18,2.9588]
[1729961087040,2.9581,169.22,169.19,2.9584]
[1729961087635,2.9579,169.23,169.2,2.9583]
[1729961092143,2.9582,169.22,169.19,2.9584]
[1729961093450,1.2981,169.27,169.13,1.2038]
[1729961093647,17.78,169.25,169.12,1.2318]
[1729961093846,4.4,169.24,169.13,4.4]
[1729961094049,7.43183199,169.24,169.13,4.4]
[1729961094247,2.9593,169.16,169.13,4.4]
[1729961094746,7.43183199,169.24,169.13,4.4]
[1729961094950,7.43183199,169.24,169.12,8.5915]
[1729961095251,25.21183199,169.24,169.12,1.2318]
[1729961095450,2.9597,169.13,169.11,4.4]
[1729961095848,2.96,169.11,169.08,2.9605]
[1729961096048,1.2244,169.18,169.08,2.9605]
[1729961096647,1.2244,169.18,169.07,1.2107]
[1729961096950,1.2244,169.18,169.03,4.4]
[1729961097152,1.2244,169.18,169.01,1.2107]
[1729961097352,1.2244,169.18,169.03,2.9614]
[1729961097953,2.9607,169.08,169.03,2.9614]
[1729961098147,1.2244,169.18,169.02,4.4]
[1729961098352,4.4,169.17,169.08,2.9604]
[1729961098552,2.9597,169.13,169.08,2.9604]
[1729961098852,4.4,169.16,169.09,2.9603]
[1729961099051,4.4,169.16,169.06,4.4]
[1729961099254,2.9598,169.13,169.06,4.4]
[1729961099751,2.9598,169.13,169.08,2.9604]
[1729961100154,2.9598,169.13,169.06,4.4]
[1729961100351,2.9591,169.16,169.06,4.4]
[1729961100555,1.2244,169.18,169.06,4.4]
[1729961100556,5.6244,169.18,169.07,2.4687]
[1729961100854,2.9598,169.13,169.09,2.9603]
[1729961110961,5.6244,169.18,169.08,4.4]
[1729961111964,2.9593,169.15,169.1,2.9601]
[1729961112261,5.6244,169.18,169.1,2.9601]
[1729961113261,57.5,169.2,169.08,4.4]
[1729961113454,4.4,169.18,169.09,1.2353]
[1729961113656,2.9592,169.16,169.12,2.9597]
[1729961114153,57.5,169.2,169.09,1.2353]
[1729961114353,4.4,169.19,169.09,1.2353]
[1729961115162,2.9591,169.17,169.14,2.9595]
[1729961118778,4.4,169.19,169.09,1.2353]
[1729961119075,2.9589,169.18,169.09,1.2353]
[1729961119276,1.2087,169.22,169.09,1.2353]
[1729961119471,2.9588,169.19,169.09,1.2353]
[1729961120078,2.9588,169.19,169.15,2.9591]
[1729961121373,4.4,169.21,169.13,2.9595]
[1729961121677,4.4,169.21,169.09,1.2353]
[1729961121879,4.4,169.21,169.09,5.6353]
[1729961122379,2.9589,169.18,169.11,2.9599]
[1729961122580,4.4,169.17,169.11,2.9599]
[1729961123677,4.4,169.17,169.1,2.9601]
[1729961123877,4.4,169.17,169.09,5.6353]
[1729961124778,2.9594,169.15,169.11,2.9599]
[1729961130478,4.4,169.17,169.09,1.2353]
[1729961130682,4.4,169.17,169.09,4.1955]
[1729961130883,1.197,169.16,169.09,4.1955]
[1729961131175,2.9599,169.12,169.09,4.1955]
[1729961131375,4.4,169.13,169.02,1.2572]
[1729961131576,4.4,169.13,169.04,4.4]
[1729961132082,2.9605,169.09,169.05,2.9609]
[1729961133683,2.9605,169.09,169.04,4.4]
[1729961133884,2.9605,169.09,169.06,2.9609]
[1729961135188,4.4,169.13,169.04,4.4]
[1729961135382,2.9603,169.1,169.06,2.9609]
[1729961135982,2.9595,169.14,169.1,2.9601]
[1729961136288,5.6997,169.21,169.08,4.4]
[1729961136485,5.6997,169.21,169.09,3.8765]
[1729961137188,2.9586,169.2,169.15,2.9592]
[1729961137585,5.6997,169.21,169.15,2.9592]
[1729961138387,1.2997,169.21,169.15,2.9592]
[1729961138585,5.6997,169.21,169.15,2.9592]
[1729961139289,2.9586,169.19,169.15,2.9592]
[1729961145892,2.9588,169.18,169.15,2.9592]
[1729961152803,5.6997,169.21,169.09,3.8765]
[1729961153003,2.9595,169.15,169.12,2.9598]
[1729961153704,5.6997,169.21,169.12,2.9598]
[1729961153905,2.9595,169.14,169.12,2.9598]
[1729961155907,2.9594,169.15,169.12,2.9598]
[1729961156707,4.52,169.17,169.1,4.52]
[1729961156909,2.9595,169.14,169.11,2.96]
[1729961157207,2.9595,169.14,169.1,4.52]
[1729961158005,4.52,169.17,169.1,4.52]
[1729961158205,2.9594,169.15,169.12,2.9598]
[1729961159402,4.52,169.17,169.05,1.3168]
[1729961159608,1.2265,169.16,169.06,4.52]
[1729961160507,2.9597,169.13,169.1,2.9601]
[1729961161311,1.2265,169.16,169.06,4.52]
[1729961161504,2.96,169.12,169.06,4.52]
[1729961161711,1.2265,169.16,169.06,4.52]
[1729961161910,2.9597,169.13,169.06,4.52]
[1729961163307,2.9597,169.13,169.1,2.9601]
[1729961168322,4.52,169.16,169.06,4.52]
[1729961168617,2.9596,169.14,169.06,4.52]
[1729961169121,2.9596,169.14,169.1,2.9601]
[1729961169320,2.9591,169.17,169.06,4.52]
[1729961169817,2.9591,169.17,169.13,2.9595]
[1729961170017,2.9591,169.17,169.1,4.52]
[1729961170218,4.52,169.18,169.11,1.2491]
[1729961170413,2.9589,169.18,169.15,2.9592]
[1729961171222,4.52,169.19,169.15,2.9592]
[1729961171415,2.959,169.17,169.15,2.9592]
[1729961171720,2.959,169.17,169.11,2.4883]
[1729961171922,2.959,169.17,169.13,2.9595]
[1729961172720,2.959,169.17,169.11,2.4883]
[1729961172921,2.959,169.17,169.14,2.9595]
[1729961173122,7.4787,169.19,169.11,2.4883]
[1729961173321,4.52,169.19,169.11,2.4883]
[1729961174234,2.9589,169.18,169.15,2.9593]
[1729961174827,4.31453199,169.24,169.11,2.4883]
[1729961174828,1.2827,169.24,169.11,2.4883]
[1729961175027,251.2123099,169.23,169.12,1.2582]
[1729961175424,2.9583,169.21,169.15,2.9593]
[1729961175625,2.9583,169.21,169.14,4.52]
[1729961176427,2.9583,169.21,169.18,2.9587]
[1729961177932,4.52,169.23,169.14,4.52]
[1729961178132,7.478,169.23,169.14,4.52]
[1729961178633,7.478,169.23,169.16,2.959]
[1729961178832,7.478,169.23,169.14,4.52]
[1729961179133,7.478,169.23,169.19,2.9585]
[1729961179732,2.958,169.23,169.19,2.9585]
[1729961182340,2.9584,169.21,169.17,2.9589]
[1729961182530,2.96512621,169.24,169.12,1.2582]
[1729961182839,2.96512621,169.24,169.12,5.6982]
[1729961183833,2.9582,169.22,169.17,2.9589]
[1729961184032,4.44,169.25,169.12,5.6982]
[1729961185240,2.9583,169.21,169.18,2.9587]
[1729961189639,4.44,169.25,169.12,1.2582]
[1729961189842,2.9589,169.18,169.15,2.9593]
[1729961190037,4.44,169.21,169.11,2.4883]
[1729961190642,2.9591,169.16,169.13,2.9595]
[1729961192442,4.44,169.21,169.13,2.9595]
[1729961192644,4.44,169.21,169.11,2.4883]
[1729961193145,2.9587,169.19,169.15,2.9592]
[1729961194237,4.44,169.21,169.11,2.4883]
[1729961194444,1.2057,169.27,169.12,1.192]
[1729961194642,4.44,169.26,169.12,1.192]
[1729961195048,2.958,169.23,169.12,1.192]
[1729961195444,2.958,169.23,169.19,2.9585]
[1729961196146,4.44,169.25,169.18,2.9587]
[1729961196346,4.44,169.25,169.17,1.2048]
[1729961196843,4.44,169.25,169.17,2.4293]
[1729961197044,2.9579,169.24,169.2,2.9583]
[1729961197343,4.44,169.26,169.2,2.9583]
[1729961197544,5.6457,169.27,169.2,2.9583]
[1729961198249,2.9579,169.23,169.2,2.9583]
[1729961199946,5.6457,169.27,169.17,2.4293]
[1729961200145,2.9577,169.25,169.22,2.958]
[1729961200950,2.9573,169.27,169.24,2.9576]
[1729961201157,251.03786294,169.29,169.24,2.9576]
[1729961201347,4.44,169.29,169.24,2.9576]
[1729961202254,2.9573,169.27,169.24,2.9576]
[1729961204951,2.4618,169.31,169.25,2.9574]
[1729961205150,4.44,169.33,169.2,4.44]
[1729961205749,4.44,169.33,169.27,2.9571]
[1729961205750,2.9567,169.31,169.27,2.9571]
[1729961206262,2.955,169.4,169.32,2.9563]
[1729961206448,4.42,169.39,169.28,4.42]
[1729961206653,1.2746,169.43,169.28,4.42]
[1729961206854,4.42,169.42,169.28,4.42]
[1729961207661,4.42,169.45,169.28,4.42]
[1729961208055,2.9549,169.41,169.36,2.9555]
[1729961208358,3.4262,169.52,169.34,4.42]
[1729961208558,4.42,169.51,169.41,2.9546]
[1729961208762,4.42,169.51,169.38,4.42]
[1729961208954,2.9542,169.45,169.4,2.9548]
[1729961209160,2.9542,169.45,169.38,4.42]
[1729961209161,4.42,169.48,169.38,4.42]
[1729961209761,2.9539,169.47,169.41,2.9548]
[1729961210362,2.9542,169.45,169.4,2.9549]
[1729961210558,4.42,169.48,169.4,2.9549]
[1729961211162,2.9542,169.45,169.4,2.9549]
[1729961212363,2.9542,169.45,169.4,2.9548]
[1729961212565,2.9542,169.45,169.38,4.42]
[1729961212962,2.9542,169.45,169.41,2.9547]
[1729961213659,4.42,169.48,169.38,4.42]
[1729961213861,2.9538,169.47,169.43,2.9544]
[1729961214161,4.42,169.48,169.38,4.42]
[1729961214360,2.9539,169.46,169.42,2.9545]
[1729961214755,2.9537,169.47,169.43,2.9544]
[1729961215062,5.6127,169.52,169.38,4.42]
[1729961215567,2.9534,169.49,169.45,2.9539]
[1729961216158,2.9532,169.5,169.46,2.9539]
[1729961217865,5.6127,169.52,169.43,2.5971]
[1729961218165,5.6127,169.52,169.42,2.9545]
[1729961218464,5.6127,169.52,169.39,4.42]
[1729961218663,2.9537,169.48,169.39,4.42]
[1729961219164,2.9537,169.48,169.43,2.9543]
[1729961220263,5.6127,169.52,169.36,2.5661]
[1729961220459,5.6127,169.52,169.37,4.42]
[1729961220864,2.9544,169.44,169.37,4.42]
[1729961221163,4.42,169.47,169.36,2.5661]
[1729961221463,2.9552,169.39,169.36,1.2766]
[1729961221663,4.42,169.42,169.35,4.42]
[1729961221865,2.9553,169.38,169.34,2.9559]
[1729961222168,4.42,169.42,169.32,4.42]
[1729961222465,2.9554,169.38,169.34,2.956]
[1729961223068,2.9554,169.38,169.32,4.42]
[1729961223664,2.9554,169.38,169.31,6.9995]
[1729961224065,2.9554,169.38,169.34,2.9559]
[1729961224869,4.42,169.42,169.31,6.9995]
[1729961225060,4.42,169.42,169.33,2.9561]
[1729961225566,2.9555,169.38,169.33,2.9561]
[1729961225866,4.42,169.42,169.33,2.9561]
[1729961227267,2.9556,169.37,169.33,2.9561]
[1729961229364,4.42,169.42,169.31,6.9995]
[1729961229677,2.955,169.4,169.36,2.9555]
[1729961230362,2.955,169.4,169.33,2.956]
[1729961230666,1.2351,169.45,169.31,6.9995]
[1729961230862,5.6551,169.45,169.31,6.9995]
[1729961231063,0.9778,169.51,169.31,6.9995]
[1729961231264,2.9541,169.45,169.31,6.9995]
[1729961232069,2.954,169.46,169.42,2.9544]
[1729961232472,2.954,169.46,169.39,1.2542]
[1729961234170,4.42,169.48,169.39,1.2542]
[1729961234867,4.42,169.48,169.41,2.9547]
[1729961236278,2.9543,169.44,169.41,2.9547]
[1729961236978,2.955,169.4,169.31,1.284]
[1729961237280,4.5,169.44,169.32,5.6913]
[1729961237474,2.5433,169.43,169.32,5.6913]
[1729961237876,2.9551,169.4,169.36,2.9555]
[1729961238283,17.78,169.52,169.36,4.5]
[1729961238580,2.9544,169.43,169.36,4.5]
[1729961238777,4.5,169.46,169.36,4.5]
[1729961239179,2.9544,169.43,169.36,4.5]
[1729961239378,4.5,169.47,169.36,4.5]
[1729961239687,2.9542,169.45,169.41,2.9547]
[1729961239879,2.9542,169.45,169.36,4.5]
[1729961240374,2.9542,169.45,169.39,2.955]
[1729961240578,2.954,169.46,169.37,1.2752]
[1729961240982,4.5,169.47,169.41,2.9546]
[1729961241285,2.9541,169.45,169.37,1.2752]
[1729961241585,2.9541,169.45,169.39,2.955]
[1729961241784,2.9541,169.45,169.37,1.2752]
[1729961242085,2.9541,169.45,169.41,2.9546]
[1729961243787,4.5,169.47,169.41,2.9546]
[1729961243977,2.9542,169.45,169.41,2.9546]
[1729961244284,4.5,169.47,169.36,2.9555]
[1729961244588,7.42634819,169.47,169.33,4.5]
[1729961244786,7.42634819,169.47,169.37,2.9554]
[1729961244992,7.42634819,169.47,169.33,4.5]
[1729961245181,0.9765,169.46,169.33,4.5]
[1729961245381,0.9765,169.46,169.36,2.9556]
[1729961245889,2.9551,169.4,169.36,2.9556]
[1729961246089,4.5,169.41,169.34,2.9559]
[1729961246289,2.9554,169.38,169.33,4.5]
[1729961247292,2.9554,169.38,169.35,2.9558]
[1729961247994,4.5,169.41,169.32,1.1913]
[1729961248290,2.9558,169.36,169.32,2.9563]
[1729961248793,2.9558,169.36,169.29,4.5]
[1729961248994,2.9554,169.38,169.34,2.9559]
[1729961249295,2.5824,169.4,169.34,2.9559]
[1729961250187,2.5824,169.4,169.29,4.5]
[1729961250392,2.5824,169.4,169.33,2.9561]
[1729961250794,2.9556,169.37,169.33,2.9561]
[1729961251489,2.5824,169.4,169.29,4.5]
[1729961251695,2.5824,169.4,169.28,1.1973]
[1729961251696,2.956,169.34,169.28,1.1973]
[1729961252103,2.9562,169.33,169.3,2.9566]
[1729961252301,4.5,169.37,169.3,2.9566]
[1729961252502,4.5,169.37,169.28,1.1973]
[1729961252803,2.9558,169.36,169.32,2.9562]
[1729961253001,4.5,169.37,169.32,2.9562]
[1729961253400,2.9557,169.36,169.32,2.9562]
[1729961253602,4.5,169.37,169.33,2.956]
[1729961254102,2.9558,169.36,169.28,1.1973]
[1729961254303,4.5,169.37,169.32,2.9563]
[1729961255203,2.9559,169.35,169.32,2.9563]
[1729961255502,4.5,169.37,169.3,2.9565]
[1729961255904,2.956,169.35,169.31,2.9564]
[1729961257112,2.956,169.34,169.31,2.9564]
[1729961257300,4.5,169.37,169.33,2.956]
[1729961257603,2.9559,169.35,169.28,1.1973]
[1729961257803,4.5,169.37,169.28,1.1973]
[1729961258006,4.5,169.37,169.3,2.9565]
[1729961258606,2.9561,169.34,169.3,2.9565]
[1729961258804,2.9561,169.34,169.31,2.9565]
[1729961260802,4.5,169.37,169.28,1.1973]
[1729961261906,4.5,169.37,169.28,4.1542]
[1729961262308,2.9567,169.3,169.27,2.9572]
[1729961263103,4.5,169.37,169.25,4.5]
[1729961263305,2.9563,169.33,169.3,2.9566]
[1729961266311,4.5,169.37,169.25,4.5]
[1729961266610,2.9559,169.35,169.25,4.5]
[1729961267010,2.9559,169.35,169.31,2.9564]
[1729961268614,2.5824,169.4,169.25,4.5]
[1729961268810,4.46,169.39,169.26,4.46]
[1729961269313,4.46,169.39,169.26,10.3748]
[1729961269913,2.9555,169.37,169.34,2.9559]
[1729961272915,4.46,169.39,169.3,4.46]
[1729961273116,2.9552,169.39,169.31,2.5161]
[1729961273313,5.7629,169.4,169.31,2.5161]
[1729961273518,58.4183,169.44,169.31,2.5161]
[1729961273519,57.44,169.44,169.31,2.5161]
[1729961273817,4.46,169.43,169.32,1.3061]
[1729961275315,2.9548,169.41,169.38,2.9552]
[1729961275817,4.46,169.43,169.34,4.46]
[1729961276011,7.4145,169.43,169.34,4.46]
[1729961276625,7.4145,169.43,169.39,2.955]
[1729961277307,7.4145,169.43,169.4,2.9549]
[1729961278819,7.4145,169.43,169.39,2.9551]
[1729961279420,4.46,169.43,169.34,4.46]
[1729961279918,2.9546,169.42,169.38,2.9552]
[1729961280318,4.46,169.43,169.34,4.46]
[1729961280517,4.46,169.45,169.34,4.46]
[1729961280717,5.7082,169.46,169.34,4.46]
[1729961281020,2.9545,169.43,169.39,2.9549]
[1729961281423,5.7082,169.46,169.34,4.46]
[1729961281620,2.9542,169.45,169.34,4.46]
[1729961282018,2.9538,169.47,169.39,2.955]
[1729961282219,4.46,169.49,169.4,6.8909]
[1729961282723,2.9536,169.48,169.45,2.9541]
[1729961284224,2.9536,169.48,169.4,6.8909]
[1729961284422,2.9536,169.48,169.44,2.9542]
[1729961284725,7.4133,169.5,169.4,6.8909]
[1729961284921,4.46,169.5,169.43,2.9544]
[1729961285121,4.46,169.5,169.4,6.8909]
[1729961285821,2.9537,169.47,169.43,2.9544]
[1729961286423,2.9537,169.47,169.42,2.9546]
[1729961286623,2.9537,169.47,169.4,6.8909]
[1729961286926,2.9537,169.47,169.43,2.9543]
[1729961287824,2.9537,169.48,169.44,2.9541]
[1729961289323,2.9537,169.48,169.45,2.954]
[1729961289524,1.3116,169.52,169.41,1.2005]
[1729961289727,4.46,169.53,169.41,1.2005]
[1729961290127,2.9531,169.51,169.47,2.9536]
[1729961290329,4.46,169.54,169.44,4.46]
[1729961290722,2.9528,169.53,169.49,2.9532]
[1729961291026,2.9528,169.53,169.44,4.46]
[1729961291220,5.7439,169.56,169.44,4.46]
[1729961291428,2.9526,169.54,169.5,2.9531]
[1729961291626,5.7439,169.56,169.5,2.9531]
[1729961292026,2.9526,169.54,169.51,2.9529]
[1729961292225,5.7439,169.56,169.48,4.46]
[1729961292417,2.9524,169.55,169.48,4.46]
[1729961292727,5.7439,169.56,169.5,2.9531]
[1729961293025,2.9527,169.54,169.5,2.9531]
[1729961293217,5.7439,169.56,169.5,2.9531]
[1729961293927,5.7439,169.56,169.48,4.46]
[1729961294324,5.7439,169.56,169.46,4.46]
[1729961294926,5.7439,169.56,169.47,1.2437]
[1729961295428,5.7439,169.56,169.47,2.4849]
[1729961295926,2.9527,169.53,169.5,2.9531]
[1729961296327,5.7439,169.56,169.47,2.4849]
[1729961296528,2.953,169.52,169.48,2.9534]
[1729961297131,5.7439,169.56,169.47,1.2437]
[1729961297132,2.9531,169.51,169.47,4.1973]
[1729961299030,2.9531,169.51,169.47,1.2437]
[1729961299225,2.9531,169.51,169.48,2.9535]
[1729961302728,5.7439,169.56,169.47,1.2437]
[1729961302931,2.9526,169.54,169.5,2.9531]
[1729961303134,2.9526,169.54,169.47,1.2437]
[1729961303631,2.9527,169.53,169.5,2.9532]
[1729961304431,1.2839,169.56,169.5,2.9532]
[1729961304631,2.9526,169.54,169.47,1.2437]
[1729961304932,2.9526,169.54,169.51,2.9529]
[1729961305128,1.2839,169.56,169.49,4.44]
[1729961305335,2.9524,169.55,169.51,2.9529]
[1729961305634,1.2839,169.56,169.49,4.44]
[1729961305934,2.9528,169.53,169.49,2.9533]
[1729961307028,2.9528,169.53,169.47,1.2437]
[1729961307234,2.9528,169.53,169.5,2.9531]
[1729961308337,1.2839,169.56,169.47,1.2437]
[1729961308528,2.9526,169.54,169.5,2.9531]
[1729961308733,1.2839,169.56,169.47,1.2437]
[1729961309037,2.9526,169.54,169.5,2.9531]
[1729961309238,2.9526,169.54,169.47,1.2437]
[1729961309633,2.9526,169.54,169.51,2.953]
[1729961310136,2.9521,169.57,169.53,2.9526]
[1729961310339,4.44,169.58,169.5,4.44]
[1729961310533,4.44,169.59,169.5,4.44]
[1729961310733,2.9523,169.56,169.52,2.9527]
[1729961310934,2.9523,169.56,169.5,4.44]
[1729961311136,4.44,169.59,169.5,4.44]
[1729961311328,5.6476,169.61,169.5,4.44]
[1729961311528,5.6476,169.61,169.51,1.2459]
[1729961311734,5.6476,169.61,169.55,2.9523]
[1729961312241,5.6476,169.61,169.52,2.9527]
[1729961312536,5.6476,169.61,169.51,1.2459]
[1729961312537,8.5989,169.61,169.51,1.2459]
[1729961312738,1.2076,169.61,169.58,2.9518]
[1729961312939,5.7445,169.63,169.54,4.44]
[1729961313132,4.44,169.63,169.54,4.44]
[1729961313334,1.2297,169.62,169.47,2.444]
[1729961313541,1.2297,169.62,169.48,4.44]
[1729961313740,2.9527,169.53,169.48,4.44]
[1729961314940,2.9527,169.53,169.49,2.9533]
[1729961316438,2.9527,169.53,169.48,4.44]